[Event "Titled Tuesday Blitz March 15 Late 2022"]
[White "Badelka, Olga"]
[Black "Fier, Alexandr"]
[WhiteFideId "13509926"]
[BlackFideId "2107139"]
[WhiteElo "2165"]
[BlackElo "2571"]
[Result "1-0"]
[Round "06"]
[TimeControl "180+1"]
[Date "2022.03.16"]
[WhiteClock "0:00:05"]
[BlackClock "0:02:29"]

1. e4 {[%clk 0:02:59]}  Nf6 {[%clk 0:02:57]} 2. d3 {[%clk 0:02:59]}  d5 {[%clk 0:02:57]} 3. Nd2 {[%clk 0:02:55]}  dxe4 {[%clk 0:02:56]} 4. dxe4 {[%clk 0:02:55]}  e5 {[%clk 0:02:57]} 5. Ngf3 {[%clk 0:02:51]}  Nc6 {[%clk 0:02:57]} 6. Bc4 {[%clk 0:02:43]}  Bd6 {[%clk 0:02:56]} 7. O-O {[%clk 0:02:43]}  h6 {[%clk 0:02:51]} 8. c3 {[%clk 0:02:43]}  Bg4 {[%clk 0:02:50]} 9. h3 {[%clk 0:02:43]}  Bh5 {[%clk 0:02:49]} 10. b4 {[%clk 0:02:40]}  Qe7 {[%clk 0:02:49]} 11. a4 {[%clk 0:02:32]}  Nd8 {[%clk 0:02:49]} 12. a5 {[%clk 0:02:30]}  Ne6 {[%clk 0:02:49]} 13. Qb3 {[%clk 0:02:20]}  Ng5 {[%clk 0:02:49]} 14. Nh2 {[%clk 0:01:48]}  Bg6 {[%clk 0:02:44]} 15. f3 {[%clk 0:01:44]}  h5 {[%clk 0:02:44]} 16. Bb5+ {[%clk 0:01:32]}  c6 {[%clk 0:02:43]} 17. Ba4 {[%clk 0:01:32]}  Ne6 {[%clk 0:02:42]} 18. Nc4 {[%clk 0:01:28]}  Bc7 {[%clk 0:02:39]} 19. Be3 {[%clk 0:01:24]}  Nf4 {[%clk 0:02:38]} 20. b5 {[%clk 0:01:06]}  c5 {[%clk 0:02:35]} 21. b6+ {[%clk 0:01:03]}  Kf8 {[%clk 0:02:36]} 22. bxc7 {[%clk 0:01:02]}  Qxc7 {[%clk 0:02:36]} 23. Bxf4 {[%clk 0:00:46]}  exf4 {[%clk 0:02:37]} 24. Rfd1 {[%clk 0:00:43]}  h4 {[%clk 0:02:36]} 25. Nd6 {[%clk 0:00:41]}  Kg8 {[%clk 0:02:35]} 26. Qxb7 {[%clk 0:00:40]}  Qxb7 {[%clk 0:02:36]} 27. Nxb7 {[%clk 0:00:41]}  Kh7 {[%clk 0:02:35]} 28. a6 {[%clk 0:00:37]}  Rhc8 {[%clk 0:02:35]} 29. Ng4 {[%clk 0:00:35]}  Nh5 {[%clk 0:02:34]} 30. Bd7 {[%clk 0:00:34]}  Rc7 {[%clk 0:02:34]} 31. Bf5 {[%clk 0:00:30]}  Ng3 {[%clk 0:02:34]} 32. Bxg6+ {[%clk 0:00:30]}  Kxg6 {[%clk 0:02:35]} 33. Kf2 {[%clk 0:00:29]}  f6 {[%clk 0:02:35]} 34. Ra5 {[%clk 0:00:28]}  Rac8 {[%clk 0:02:34]} 35. Rd5 {[%clk 0:00:27]}  c4 {[%clk 0:02:34]} 36. Rac5 {[%clk 0:00:27]}  Rxc5 {[%clk 0:02:35]} 37. Rxc5 {[%clk 0:00:27]}  Re8 {[%clk 0:02:35]} 38. Rxc4 {[%clk 0:00:27]}  f5 {[%clk 0:02:36]} 39. Rc6+ {[%clk 0:00:23]}  Kh7 {[%clk 0:02:36]} 40. Nd6 {[%clk 0:00:11]}  Rb8 {[%clk 0:02:36]} 41. Nxf5 {[%clk 0:00:11]}  Rb2+ {[%clk 0:02:35]} 42. Ke1 {[%clk 0:00:11]}  Rxg2 {[%clk 0:02:34]} 43. Nxh4 {[%clk 0:00:11]}  Rg1+ {[%clk 0:02:33]} 44. Kd2 {[%clk 0:00:10]}  Rh1 {[%clk 0:02:34]} 45. Nf5 {[%clk 0:00:08]}  Rxh3 {[%clk 0:02:34]} 46. Rc7 {[%clk 0:00:08]}  Kg8 {[%clk 0:02:34]} 47. Rxa7 {[%clk 0:00:08]}  Kf8 {[%clk 0:02:35]} 48. Ra8+ {[%clk 0:00:08]}  Kf7 {[%clk 0:02:36]} 49. a7 {[%clk 0:00:07]}  Nf1+ {[%clk 0:02:34]} 50. Kc1 {[%clk 0:00:07]}  Ng3 {[%clk 0:02:35]} 51. Rc8 {[%clk 0:00:06]}  Rh1+ {[%clk 0:02:36]} 52. Kb2 {[%clk 0:00:06]}  Nxf5 {[%clk 0:02:35]} 53. exf5 {[%clk 0:00:05]}  Rh2+ {[%clk 0:02:29]} 54. Nxh2 {[%clk 0:00:05]} 1-0


[Site "https://www.chess.com"]

[Event "Titled Tuesday Blitz March 15 Late 2022"]
[White "Bluebaum, Matthias"]
[Black "Lysyj, Igor"]
[WhiteFideId "24651516"]
[BlackFideId "4150120"]
[WhiteElo "2550"]
[BlackElo "2611"]
[Result "1-0"]
[Round "06"]
[TimeControl "180+1"]
[Date "2022.03.15"]
[WhiteClock "0:00:07"]
[BlackClock "0:00:09"]

1. b3 {[%clk 0:03:00]}  Nf6 {[%clk 0:02:58]} 2. Bb2 {[%clk 0:03:01]}  e6 {[%clk 0:02:59]} 3. Nf3 {[%clk 0:03:01]}  b6 {[%clk 0:02:58]} 4. g3 {[%clk 0:02:57]}  Bb7 {[%clk 0:02:58]} 5. Bg2 {[%clk 0:02:58]}  Be7 {[%clk 0:02:58]} 6. c4 {[%clk 0:02:58]}  c5 {[%clk 0:02:58]} 7. O-O {[%clk 0:02:58]}  O-O {[%clk 0:02:58]} 8. d4 {[%clk 0:02:58]}  cxd4 {[%clk 0:02:57]} 9. Qxd4 {[%clk 0:02:59]}  d6 {[%clk 0:02:54]} 10. Rd1 {[%clk 0:02:54]}  Nbd7 {[%clk 0:02:53]} 11. Nc3 {[%clk 0:02:55]}  a6 {[%clk 0:02:52]} 12. Rac1 {[%clk 0:02:52]}  Qc7 {[%clk 0:02:51]} 13. Nh4 {[%clk 0:02:38]}  Bxg2 {[%clk 0:02:50]} 14. Nxg2 {[%clk 0:02:38]}  Qb7 {[%clk 0:02:41]} 15. Ba3 {[%clk 0:02:23]}  Nc5 {[%clk 0:02:41]} 16. Qe3 {[%clk 0:02:15]}  Rfd8 {[%clk 0:02:37]} 17. Nf4 {[%clk 0:02:01]}  Ng4 {[%clk 0:02:36]} 18. Qd2 {[%clk 0:01:52]}  Ne5 {[%clk 0:02:28]} 19. Qc2 {[%clk 0:01:41]}  Bg5 {[%clk 0:02:26]} 20. Bb2 {[%clk 0:01:34]}  Bxf4 {[%clk 0:02:24]} 21. gxf4 {[%clk 0:01:35]}  Ng6 {[%clk 0:02:24]} 22. Qd2 {[%clk 0:01:35]}  Nh4 {[%clk 0:02:22]} 23. f3 {[%clk 0:01:35]}  Qe7 {[%clk 0:01:48]} 24. Ne4 {[%clk 0:01:03]}  Nxe4 {[%clk 0:01:35]} 25. fxe4 {[%clk 0:01:04]}  e5 {[%clk 0:00:53]} 26. f5 {[%clk 0:00:59]}  b5 {[%clk 0:00:46]} 27. Qe3 {[%clk 0:00:56]}  bxc4 {[%clk 0:00:44]} 28. Rxc4 {[%clk 0:00:57]}  d5 {[%clk 0:00:42]} 29. Rxd5 {[%clk 0:00:53]}  Rxd5 {[%clk 0:00:37]} 30. exd5 {[%clk 0:00:54]}  Nxf5 {[%clk 0:00:37]} 31. Qxe5 {[%clk 0:00:54]}  Qg5+ {[%clk 0:00:37]} 32. Kh1 {[%clk 0:00:40]}  Qh5 {[%clk 0:00:18]} 33. d6 {[%clk 0:00:14]}  Qh3 {[%clk 0:00:14]} 34. Rf4 {[%clk 0:00:06]}  Ng3+ {[%clk 0:00:09]} 35. Kg1 {[%clk 0:00:06]}  f6 {[%clk 0:00:09]} 36. Qd5+ {[%clk 0:00:06]}  Kf8 {[%clk 0:00:09]} 37. Qxa8+ {[%clk 0:00:07]}  Kf7 {[%clk 0:00:09]} 38. Qb7+ {[%clk 0:00:07]}  Kg6 {[%clk 0:00:09]} 39. Qg2 {[%clk 0:00:07]} 1-0


[Site "https://www.chess.com"]

[Event "Titled Tuesday Blitz March 15 Late 2022"]
[White "Bortnyk, Olexandr"]
[Black "Chiu, Isaac"]
[WhiteFideId "14120828"]
[BlackFideId "30900654"]
[WhiteElo "2723"]
[BlackElo "2117"]
[Result "1-0"]
[Round "06"]
[TimeControl "180+1"]
[Date "2022.03.16"]
[WhiteClock "0:01:27"]
[BlackClock "0:00:51"]

1. e4 {[%clk 0:03:00]}  e5 {[%clk 0:02:58]} 2. Bc4 {[%clk 0:02:57]}  Nf6 {[%clk 0:02:57]} 3. d3 {[%clk 0:02:55]}  c6 {[%clk 0:02:57]} 4. Nf3 {[%clk 0:02:50]}  d5 {[%clk 0:02:57]} 5. Bb3 {[%clk 0:02:49]}  a5 {[%clk 0:02:58]} 6. a4 {[%clk 0:02:48]}  Bb4+ {[%clk 0:02:58]} 7. Bd2 {[%clk 0:02:48]}  Bxd2+ {[%clk 0:02:56]} 8. Qxd2 {[%clk 0:02:49]}  Qc7 {[%clk 0:02:46]} 9. exd5 {[%clk 0:02:25]}  cxd5 {[%clk 0:02:46]} 10. Nc3 {[%clk 0:02:25]}  d4 {[%clk 0:02:39]} 11. Nb5 {[%clk 0:02:18]}  Qe7 {[%clk 0:02:40]} 12. Qg5 {[%clk 0:02:13]}  Nc6 {[%clk 0:02:31]} 13. Qxg7 {[%clk 0:02:10]}  Rg8 {[%clk 0:02:31]} 14. Qxf7+ {[%clk 0:01:58]}  Qxf7 {[%clk 0:02:28]} 15. Nd6+ {[%clk 0:01:58]}  Ke7 {[%clk 0:02:29]} 16. Nxf7 {[%clk 0:01:59]}  Rxg2 {[%clk 0:02:29]} 17. N7xe5 {[%clk 0:01:58]}  Nxe5 {[%clk 0:02:11]} 18. Nxe5 {[%clk 0:01:58]}  Kd6 {[%clk 0:02:05]} 19. Nc4+ {[%clk 0:01:55]}  Kc5 {[%clk 0:02:05]} 20. O-O-O {[%clk 0:01:55]}  Rxf2 {[%clk 0:02:04]} 21. Rde1 {[%clk 0:01:54]}  Ra6 {[%clk 0:01:55]} 22. Re5+ {[%clk 0:01:51]}  Kc6 {[%clk 0:01:54]} 23. Nxa5+ {[%clk 0:01:49]}  Kc7 {[%clk 0:01:54]} 24. Nc4 {[%clk 0:01:46]}  Bd7 {[%clk 0:01:50]} 25. a5 {[%clk 0:01:42]}  Ng4 {[%clk 0:01:46]} 26. Re7 {[%clk 0:01:39]}  Rh6 {[%clk 0:01:41]} 27. Ba4 {[%clk 0:01:37]}  Nf6 {[%clk 0:01:36]} 28. Bxd7 {[%clk 0:01:28]}  Kd8 {[%clk 0:01:34]} 29. Rf7 {[%clk 0:01:27]}  Rhxh2 {[%clk 0:01:28]} 30. Rxh2 {[%clk 0:01:25]}  Rxh2 {[%clk 0:01:29]} 31. Rxf6 {[%clk 0:01:25]}  Kxd7 {[%clk 0:01:29]} 32. Rd6+ {[%clk 0:01:25]}  Kc7 {[%clk 0:01:29]} 33. Rxd4 {[%clk 0:01:26]}  h5 {[%clk 0:01:25]} 34. Rd6 {[%clk 0:01:24]}  h4 {[%clk 0:01:26]} 35. Rh6 {[%clk 0:01:24]}  h3 {[%clk 0:01:26]} 36. b4 {[%clk 0:01:24]}  Rh1+ {[%clk 0:01:26]} 37. Kb2 {[%clk 0:01:25]}  h2 {[%clk 0:01:27]} 38. Kc3 {[%clk 0:01:25]}  Kb8 {[%clk 0:01:24]} 39. b5 {[%clk 0:01:25]}  Ka7 {[%clk 0:01:25]} 40. Rh8 {[%clk 0:01:25]}  b6 {[%clk 0:01:21]} 41. axb6+ {[%clk 0:01:26]}  Kb7 {[%clk 0:01:21]} 42. Rh7+ {[%clk 0:01:26]}  Kb8 {[%clk 0:01:21]} 43. Na5 {[%clk 0:01:26]}  Ra1 {[%clk 0:00:50]} 44. Nc6+ {[%clk 0:01:27]}  Ka8 {[%clk 0:00:51]} 45. b7# {[%clk 0:01:27]} 1-0


[Site "https://www.chess.com"]

[Event "Titled Tuesday Blitz March 15 Late 2022"]
[White "Bryakin, Mikhail"]
[Black "Travadon, Loic"]
[WhiteFideId "4165314"]
[BlackFideId "26092131"]
[WhiteElo "2417"]
[BlackElo "2095"]
[Result "0-1"]
[Round "06"]
[TimeControl "180+1"]
[Date "2022.03.15"]
[WhiteClock "0:00:12"]
[BlackClock "0:00:20"]

1. e4 {[%clk 0:03:00]}  b6 {[%clk 0:02:59]} 2. Nc3 {[%clk 0:02:58]}  Bb7 {[%clk 0:02:56]} 3. Nf3 {[%clk 0:02:58]}  e6 {[%clk 0:02:43]} 4. d3 {[%clk 0:02:47]}  Bb4 {[%clk 0:02:42]} 5. Bd2 {[%clk 0:02:47]}  Ne7 {[%clk 0:02:14]} 6. a3 {[%clk 0:02:47]}  Bxc3 {[%clk 0:01:49]} 7. Bxc3 {[%clk 0:02:48]}  O-O {[%clk 0:01:50]} 8. Be2 {[%clk 0:02:45]}  d6 {[%clk 0:01:46]} 9. O-O {[%clk 0:02:45]}  Nd7 {[%clk 0:01:46]} 10. h3 {[%clk 0:02:44]}  f6 {[%clk 0:01:45]} 11. a4 {[%clk 0:02:44]}  e5 {[%clk 0:01:45]} 12. b3 {[%clk 0:02:44]}  a5 {[%clk 0:01:42]} 13. Nd2 {[%clk 0:02:41]}  Nc5 {[%clk 0:01:42]} 14. f4 {[%clk 0:02:39]}  exf4 {[%clk 0:01:41]} 15. Rxf4 {[%clk 0:02:37]}  Ne6 {[%clk 0:01:42]} 16. Rf1 {[%clk 0:02:37]}  Ng6 {[%clk 0:01:39]} 17. Bg4 {[%clk 0:02:36]}  Qe7 {[%clk 0:01:39]} 18. Nf3 {[%clk 0:02:28]}  Rae8 {[%clk 0:01:35]} 19. Qd2 {[%clk 0:02:25]}  Ne5 {[%clk 0:01:34]} 20. Bxe6+ {[%clk 0:02:24]}  Qxe6 {[%clk 0:01:33]} 21. Nd4 {[%clk 0:02:20]}  Qd7 {[%clk 0:01:33]} 22. Nf5 {[%clk 0:02:16]}  d5 {[%clk 0:01:33]} 23. exd5 {[%clk 0:02:02]}  Bxd5 {[%clk 0:01:29]} 24. Rae1 {[%clk 0:02:02]}  g6 {[%clk 0:01:27]} 25. Bxe5 {[%clk 0:01:58]}  fxe5 {[%clk 0:01:21]} 26. Nh6+ {[%clk 0:01:58]}  Kg7 {[%clk 0:01:19]} 27. Ng4 {[%clk 0:01:59]}  Qd6 {[%clk 0:01:15]} 28. Qh6+ {[%clk 0:01:53]}  Kg8 {[%clk 0:01:15]} 29. Rxf8+ {[%clk 0:01:50]}  Rxf8 {[%clk 0:01:16]} 30. Rxe5 {[%clk 0:01:42]}  Be6 {[%clk 0:01:14]} 31. Qe3 {[%clk 0:01:42]}  Bxg4 {[%clk 0:01:13]} 32. hxg4 {[%clk 0:01:43]}  Qc6 {[%clk 0:01:12]} 33. c4 {[%clk 0:01:40]}  Qf6 {[%clk 0:01:12]} 34. d4 {[%clk 0:01:30]}  Qf1+ {[%clk 0:00:46]} 35. Kh2 {[%clk 0:01:29]}  Qf6 {[%clk 0:00:47]} 36. Kg3 {[%clk 0:01:20]}  Qd6 {[%clk 0:00:38]} 37. Kh3 {[%clk 0:01:15]}  Rf1 {[%clk 0:00:35]} 38. Re8+ {[%clk 0:01:13]}  Kf7 {[%clk 0:00:28]} 39. Re5 {[%clk 0:01:09]}  Qf6 {[%clk 0:00:27]} 40. g5 {[%clk 0:01:05]}  Qd6 {[%clk 0:00:23]} 41. Kg4 {[%clk 0:00:59]}  Qd7+ {[%clk 0:00:23]} 42. Kg3 {[%clk 0:00:59]}  Qd6 {[%clk 0:00:23]} 43. Qe2 {[%clk 0:00:55]}  Rf5 {[%clk 0:00:22]} 44. Qe4 {[%clk 0:00:56]}  Rxg5+ {[%clk 0:00:23]} 45. Kf4 {[%clk 0:00:54]}  Qf6+ {[%clk 0:00:21]} 46. Ke3 {[%clk 0:00:53]}  Rg3+ {[%clk 0:00:21]} 47. Ke2 {[%clk 0:00:53]}  Rxb3 {[%clk 0:00:22]} 48. Qd5+ {[%clk 0:00:53]}  Kg7 {[%clk 0:00:22]} 49. Qd7+ {[%clk 0:00:53]}  Kh6 {[%clk 0:00:22]} 50. Re7 {[%clk 0:00:12]}  Rb2+ {[%clk 0:00:20]} 51. Kd3 {[%clk 0:00:12]}  Qf1+ {[%clk 0:00:19]} 52. Ke4 {[%clk 0:00:13]}  Qxg2+ {[%clk 0:00:19]} 53. Ke5 {[%clk 0:00:13]}  Re2+ {[%clk 0:00:20]} 54. Kf6 {[%clk 0:00:12]}  Qf1+ {[%clk 0:00:20]} 0-1


[Site "https://www.chess.com"]

[Event "Titled Tuesday Blitz March 15 Late 2022"]
[White "Chen, Justin"]
[Black "Narayanan.S.L"]
[WhiteFideId "2098199"]
[BlackFideId "5058422"]
[WhiteElo "2488"]
[BlackElo "2494"]
[Result "0-1"]
[Round "06"]
[TimeControl "180+1"]
[Date "2022.03.15"]
[WhiteClock "0:00:02"]
[BlackClock "0:00:26"]

1. e4 {[%clk 0:02:56]}  e5 {[%clk 0:02:58]} 2. Bc4 {[%clk 0:02:54]}  Nc6 {[%clk 0:02:58]} 3. Nf3 {[%clk 0:02:52]}  Nf6 {[%clk 0:02:55]} 4. d4 {[%clk 0:02:52]}  exd4 {[%clk 0:02:55]} 5. O-O {[%clk 0:02:52]}  Nxe4 {[%clk 0:02:50]} 6. Nc3 {[%clk 0:02:53]}  Nxc3 {[%clk 0:02:39]} 7. bxc3 {[%clk 0:02:53]}  d5 {[%clk 0:02:39]} 8. Bb5 {[%clk 0:02:52]}  Be7 {[%clk 0:02:38]} 9. Ne5 {[%clk 0:02:46]}  Bd7 {[%clk 0:02:33]} 10. Bxc6 {[%clk 0:02:41]}  bxc6 {[%clk 0:02:32]} 11. Qf3 {[%clk 0:02:41]}  O-O {[%clk 0:02:31]} 12. cxd4 {[%clk 0:02:41]}  f6 {[%clk 0:02:30]} 13. Nxd7 {[%clk 0:02:37]}  Qxd7 {[%clk 0:02:31]} 14. Ba3 {[%clk 0:02:38]}  Bd6 {[%clk 0:02:28]} 15. Rfe1 {[%clk 0:02:32]}  Rae8 {[%clk 0:02:28]} 16. h3 {[%clk 0:02:12]}  f5 {[%clk 0:02:27]} 17. Bxd6 {[%clk 0:02:00]}  cxd6 {[%clk 0:02:26]} 18. Rab1 {[%clk 0:02:00]}  Re4 {[%clk 0:02:26]} 19. Qc3 {[%clk 0:01:57]}  h6 {[%clk 0:02:14]} 20. f3 {[%clk 0:01:56]}  Rxe1+ {[%clk 0:02:14]} 21. Rxe1 {[%clk 0:01:56]}  Re8 {[%clk 0:02:14]} 22. Rxe8+ {[%clk 0:01:54]}  Qxe8 {[%clk 0:02:14]} 23. Kf1 {[%clk 0:01:47]}  f4 {[%clk 0:02:12]} 24. Kg1 {[%clk 0:01:33]}  Kf7 {[%clk 0:02:05]} 25. Kh2 {[%clk 0:01:24]}  g5 {[%clk 0:02:00]} 26. Qa3 {[%clk 0:01:13]}  Qd7 {[%clk 0:01:59]} 27. Qd3 {[%clk 0:01:07]}  Kf6 {[%clk 0:01:59]} 28. Qb3 {[%clk 0:01:01]}  Qc7 {[%clk 0:01:52]} 29. Qb4 {[%clk 0:00:53]}  h5 {[%clk 0:01:51]} 30. Qb1 {[%clk 0:00:49]}  g4 {[%clk 0:01:47]} 31. fxg4 {[%clk 0:00:49]}  hxg4 {[%clk 0:01:47]} 32. Qf1 {[%clk 0:00:39]}  g3+ {[%clk 0:01:45]} 33. Kh1 {[%clk 0:00:39]}  Kf5 {[%clk 0:01:43]} 34. Qd3+ {[%clk 0:00:29]}  Kg5 {[%clk 0:01:43]} 35. Qf3 {[%clk 0:00:29]}  Qf7 {[%clk 0:01:34]} 36. Qg4+ {[%clk 0:00:26]}  Kh6 {[%clk 0:01:35]} 37. Qh4+ {[%clk 0:00:25]}  Kg7 {[%clk 0:01:32]} 38. Qg5+ {[%clk 0:00:23]}  Kf8 {[%clk 0:01:26]} 39. Qd8+ {[%clk 0:00:17]}  Qe8 {[%clk 0:01:24]} 40. Qf6+ {[%clk 0:00:10]}  Kg8 {[%clk 0:01:15]} 41. Qg5+ {[%clk 0:00:10]}  Kh7 {[%clk 0:01:14]} 42. Qh4+ {[%clk 0:00:09]}  Kg7 {[%clk 0:01:14]} 43. Qg5+ {[%clk 0:00:09]}  Qg6 {[%clk 0:01:14]} 44. Qxf4 {[%clk 0:00:07]}  c5 {[%clk 0:01:09]} 45. h4 {[%clk 0:00:02]}  c4 {[%clk 0:01:02]} 46. Kg1 {[%clk 0:00:01]}  Qxc2 {[%clk 0:00:56]} 47. Qxg3+ {[%clk 0:00:01]}  Kh7 {[%clk 0:00:55]} 48. Qxd6 {[%clk 0:00:01]}  Qd1+ {[%clk 0:00:55]} 49. Kh2 {[%clk 0:00:02]}  Qxd4 {[%clk 0:00:56]} 50. Qe7+ {[%clk 0:00:01]}  Kg6 {[%clk 0:00:56]} 51. Qe6+ {[%clk 0:00:02]}  Kh7 {[%clk 0:00:43]} 52. Qf7+ {[%clk 0:00:01]}  Kh6 {[%clk 0:00:44]} 53. Qe6+ {[%clk 0:00:01]}  Kg7 {[%clk 0:00:38]} 54. Qe7+ {[%clk 0:00:01]}  Kg6 {[%clk 0:00:38]} 55. Qe6+ {[%clk 0:00:02]}  Qf6 {[%clk 0:00:39]} 56. Qxd5 {[%clk 0:00:01]}  Qxh4+ {[%clk 0:00:37]} 57. Kg1 {[%clk 0:00:02]}  Qe1+ {[%clk 0:00:37]} 58. Kh2 {[%clk 0:00:03]}  c3 {[%clk 0:00:38]} 59. Qd6+ {[%clk 0:00:02]}  Kf5 {[%clk 0:00:35]} 60. Qf8+ {[%clk 0:00:01]}  Kg5 {[%clk 0:00:31]} 61. Qd8+ {[%clk 0:00:01]}  Kf4 {[%clk 0:00:28]} 62. Qd4+ {[%clk 0:00:01]}  Kf5 {[%clk 0:00:27]} 63. Qd5+ {[%clk 0:00:02]}  Qe5+ {[%clk 0:00:26]} 0-1


[Site "https://www.chess.com"]

[Event "Titled Tuesday Blitz March 15 Late 2022"]
[White "Chyngyz, Sultai"]
[Black "Baches Garcia, Guillermo"]
[WhiteFideId "13803158"]
[BlackFideId "2209764"]
[WhiteElo "1365"]
[BlackElo "2437"]
[Result "0-1"]
[Round "06"]
[TimeControl "180+1"]
[Date "2022.03.16"]
[WhiteClock "0:01:27"]
[BlackClock "0:00:39"]

1. e4 {[%clk 0:02:59]}  c5 {[%clk 0:03:00]} 2. Nf3 {[%clk 0:02:59]}  d6 {[%clk 0:03:01]} 3. d4 {[%clk 0:02:59]}  cxd4 {[%clk 0:03:01]} 4. Nxd4 {[%clk 0:03:00]}  Nf6 {[%clk 0:03:02]} 5. Nc3 {[%clk 0:03:00]}  Nc6 {[%clk 0:03:03]} 6. Nxc6 {[%clk 0:02:58]}  bxc6 {[%clk 0:03:03]} 7. Bc4 {[%clk 0:02:58]}  e6 {[%clk 0:03:00]} 8. O-O {[%clk 0:02:58]}  Be7 {[%clk 0:03:00]} 9. Be3 {[%clk 0:02:58]}  O-O {[%clk 0:02:57]} 10. h3 {[%clk 0:02:56]}  d5 {[%clk 0:02:54]} 11. exd5 {[%clk 0:02:53]}  cxd5 {[%clk 0:02:54]} 12. Bb3 {[%clk 0:02:53]}  Bb7 {[%clk 0:02:50]} 13. Bd4 {[%clk 0:02:52]}  Nd7 {[%clk 0:02:46]} 14. f4 {[%clk 0:02:42]}  Bc5 {[%clk 0:02:37]} 15. Kh1 {[%clk 0:02:36]}  Bxd4 {[%clk 0:02:26]} 16. Qxd4 {[%clk 0:02:37]}  Qb6 {[%clk 0:02:19]} 17. Ne2 {[%clk 0:02:23]}  Ba6 {[%clk 0:02:10]} 18. Rfe1 {[%clk 0:02:16]}  Nf6 {[%clk 0:01:52]} 19. Qe5 {[%clk 0:02:07]}  Ne4 {[%clk 0:01:44]} 20. Nd4 {[%clk 0:01:51]}  Rae8 {[%clk 0:01:29]} 21. c3 {[%clk 0:01:47]}  f6 {[%clk 0:01:24]} 22. Qh5 {[%clk 0:01:37]}  Ng3+ {[%clk 0:01:23]} 23. Kh2 {[%clk 0:01:37]}  Nxh5 {[%clk 0:01:24]} 24. f5 {[%clk 0:01:36]}  Bc4 {[%clk 0:01:16]} 25. fxe6 {[%clk 0:01:35]}  Bxb3 {[%clk 0:01:13]} 26. axb3 {[%clk 0:01:36]}  Nf4 {[%clk 0:01:11]} 27. e7 {[%clk 0:01:36]}  Rf7 {[%clk 0:01:08]} 28. Nf5 {[%clk 0:01:35]}  Qf2 {[%clk 0:00:59]} 29. Rg1 {[%clk 0:01:34]}  Nxh3 {[%clk 0:00:55]} 30. Nh6+ {[%clk 0:01:30]}  gxh6 {[%clk 0:00:53]} 31. Kxh3 {[%clk 0:01:31]}  Rexe7 {[%clk 0:00:50]} 32. g3 {[%clk 0:01:30]}  Re2 {[%clk 0:00:45]} 33. Rgb1 {[%clk 0:01:29]}  Qh2+ {[%clk 0:00:40]} 34. Kg4 {[%clk 0:01:28]}  Re4+ {[%clk 0:00:40]} 35. Kf3 {[%clk 0:01:27]}  Qe2# {[%clk 0:00:39]} 0-1


[Site "https://www.chess.com"]

[Event "Titled Tuesday Blitz March 15 Late 2022"]
[White "Ciolek, Andreas"]
[Black "Magallanes, Rey Jomar"]
[WhiteFideId "12906727"]
[BlackFideId "5205948"]
[WhiteElo "2215"]
[BlackElo "2226"]
[Result "1-0"]
[Round "06"]
[TimeControl "180+1"]
[Date "2022.03.16"]
[WhiteClock "0:01:10"]
[BlackClock "0:01:15"]

1. d4 {[%clk 0:03:00]}  d5 {[%clk 0:02:48]} 2. Nf3 {[%clk 0:03:00]}  Nf6 {[%clk 0:02:47]} 3. g3 {[%clk 0:03:01]}  e6 {[%clk 0:02:37]} 4. Bg2 {[%clk 0:03:01]}  Nc6 {[%clk 0:02:28]} 5. O-O {[%clk 0:02:59]}  Bd6 {[%clk 0:02:26]} 6. c4 {[%clk 0:02:41]}  O-O {[%clk 0:02:27]} 7. Nbd2 {[%clk 0:02:29]}  b6 {[%clk 0:02:26]} 8. Qc2 {[%clk 0:02:24]}  Ba6 {[%clk 0:02:19]} 9. Re1 {[%clk 0:02:13]}  dxc4 {[%clk 0:02:17]} 10. Nxc4 {[%clk 0:02:11]}  Nd5 {[%clk 0:02:16]} 11. a3 {[%clk 0:02:04]}  Bxc4 {[%clk 0:02:12]} 12. Qxc4 {[%clk 0:02:04]}  Na5 {[%clk 0:02:13]} 13. Qc2 {[%clk 0:02:02]}  Rc8 {[%clk 0:02:11]} 14. b4 {[%clk 0:02:00]}  Nb7 {[%clk 0:02:10]} 15. Qc6 {[%clk 0:01:59]}  Rb8 {[%clk 0:02:08]} 16. e4 {[%clk 0:01:59]}  Ne7 {[%clk 0:02:07]} 17. Qc3 {[%clk 0:01:58]}  c5 {[%clk 0:02:06]} 18. dxc5 {[%clk 0:01:47]}  bxc5 {[%clk 0:02:07]} 19. Bb2 {[%clk 0:01:47]}  f6 {[%clk 0:02:01]} 20. Rad1 {[%clk 0:01:45]}  Qc7 {[%clk 0:01:59]} 21. Qc4 {[%clk 0:01:39]}  Kf7 {[%clk 0:01:55]} 22. Bh3 {[%clk 0:01:27]}  Qc8 {[%clk 0:01:39]} 23. e5 {[%clk 0:01:20]}  fxe5 {[%clk 0:01:31]} 24. Bxe5 {[%clk 0:01:21]}  Nd5 {[%clk 0:01:19]} 25. Rxd5 {[%clk 0:01:12]}  Bxe5 {[%clk 0:01:14]} 26. Rdxe5 {[%clk 0:01:11]}  Kg8 {[%clk 0:01:15]} 27. Bxe6+ {[%clk 0:01:10]} 1-0


[Site "https://www.chess.com"]